[Event "Titled Tuesday Blitz November 29 Late 2022"]
[White "Brown, Andrew"]
[Black "Harish, Neeraj"]
[WhiteFideId "3206513"]
[BlackFideId "30958130"]
[WhiteElo "2245"]
[BlackElo "1815"]
[Result "0-1"]
[Round "09"]
[TimeControl "180+1"]
[Date "2022.11.30"]
[WhiteClock "0:00:01"]
[BlackClock "0:00:02"]

1. d4 {[%clk 0:03:00]}  Nf6 {[%clk 0:02:57]} 2. c4 {[%clk 0:03:01]}  g6 {[%clk 0:02:56]} 3. Nc3 {[%clk 0:03:01]}  d5 {[%clk 0:02:56]} 4. g3 {[%clk 0:03:01]}  Bg7 {[%clk 0:02:50]} 5. Bg2 {[%clk 0:03:00]}  c6 {[%clk 0:02:45]} 6. Nf3 {[%clk 0:02:57]}  O-O {[%clk 0:02:44]} 7. O-O {[%clk 0:02:56]}  Bf5 {[%clk 0:02:43]} 8. b3 {[%clk 0:02:55]}  Ne4 {[%clk 0:02:40]} 9. Bb2 {[%clk 0:02:54]}  Nxc3 {[%clk 0:02:25]} 10. Bxc3 {[%clk 0:02:54]}  Be4 {[%clk 0:02:18]} 11. Bh3 {[%clk 0:02:52]}  Bxf3 {[%clk 0:02:08]} 12. exf3 {[%clk 0:02:51]}  e6 {[%clk 0:02:09]} 13. f4 {[%clk 0:02:48]}  Nd7 {[%clk 0:02:06]} 14. Re1 {[%clk 0:02:33]}  Nf6 {[%clk 0:01:55]} 15. Bb4 {[%clk 0:02:24]}  Re8 {[%clk 0:01:51]} 16. f3 {[%clk 0:02:23]}  Nd7 {[%clk 0:01:41]} 17. Bd6 {[%clk 0:02:17]}  dxc4 {[%clk 0:01:26]} 18. bxc4 {[%clk 0:02:16]}  Nb6 {[%clk 0:01:26]} 19. c5 {[%clk 0:02:12]}  Nc4 {[%clk 0:01:22]} 20. Be5 {[%clk 0:02:09]}  Nxe5 {[%clk 0:01:19]} 21. fxe5 {[%clk 0:02:03]}  Qd5 {[%clk 0:01:18]} 22. Re4 {[%clk 0:01:31]}  Red8 {[%clk 0:01:17]} 23. Qb3 {[%clk 0:01:28]}  Qxb3 {[%clk 0:01:05]} 24. axb3 {[%clk 0:01:27]}  a6 {[%clk 0:01:01]} 25. f4 {[%clk 0:01:16]}  Rd7 {[%clk 0:00:57]} 26. Kf2 {[%clk 0:01:12]}  Rad8 {[%clk 0:00:56]} 27. Ke3 {[%clk 0:01:11]}  Kf8 {[%clk 0:00:56]} 28. g4 {[%clk 0:01:09]}  Bh6 {[%clk 0:00:53]} 29. Bf1 {[%clk 0:01:06]}  Rd5 {[%clk 0:00:46]} 30. h4 {[%clk 0:00:57]}  Ke7 {[%clk 0:00:33]} 31. Bc4 {[%clk 0:00:48]}  R5d7 {[%clk 0:00:32]} 32. Kd3 {[%clk 0:00:33]}  Bg7 {[%clk 0:00:14]} 33. Kc3 {[%clk 0:00:32]}  Kf8 {[%clk 0:00:13]} 34. Rf1 {[%clk 0:00:14]}  h6 {[%clk 0:00:07]} 35. f5 {[%clk 0:00:14]}  gxf5 {[%clk 0:00:06]} 36. gxf5 {[%clk 0:00:13]}  exf5 {[%clk 0:00:06]} 37. Rxf5 {[%clk 0:00:13]}  Re7 {[%clk 0:00:05]} 38. Ref4 {[%clk 0:00:12]}  Rdd7 {[%clk 0:00:04]} 39. e6 {[%clk 0:00:08]}  Rc7 {[%clk 0:00:03]} 40. exf7 {[%clk 0:00:08]}  Rcd7 {[%clk 0:00:02]} 41. Rf3 {[%clk 0:00:05]}  Rc7 {[%clk 0:00:01]} 42. R5f4 {[%clk 0:00:05]}  Rcd7 {[%clk 0:00:01]} 43. Kd3 {[%clk 0:00:05]}  Rc7 {[%clk 0:00:02]} 44. Re4 {[%clk 0:00:05]}  Rcd7 {[%clk 0:00:03]} 45. Rxe7 {[%clk 0:00:05]}  Rxe7 {[%clk 0:00:04]} 46. Rf4 {[%clk 0:00:05]}  Rd7 {[%clk 0:00:04]} 47. Re4 {[%clk 0:00:04]}  Rd8 {[%clk 0:00:04]} 48. Ke3 {[%clk 0:00:04]}  Bf6 {[%clk 0:00:03]} 49. h5 {[%clk 0:00:03]}  Bg7 {[%clk 0:00:03]} 50. b4 {[%clk 0:00:03]}  Bf6 {[%clk 0:00:03]} 51. Be6 {[%clk 0:00:03]}  Bg5+ {[%clk 0:00:04]} 52. Kd3 {[%clk 0:00:03]}  Kg7 {[%clk 0:00:04]} 53. d5 {[%clk 0:00:03]}  cxd5 {[%clk 0:00:04]} 54. Re2 {[%clk 0:00:02]}  d4 {[%clk 0:00:03]} 55. Bc4 {[%clk 0:00:02]}  Kf8 {[%clk 0:00:02]} 56. Bd5 {[%clk 0:00:01]}  Rxd5 {[%clk 0:00:01]} 57. Re8+ {[%clk 0:00:01]}  Kxf7 {[%clk 0:00:02]} 0-1


[Site "https://www.chess.com"]

[Event "Titled Tuesday Blitz November 29 Late 2022"]
[White "Calcada, Lucas Galvan"]
[Black "Young, Ryan"]
[WhiteFideId "22746099"]
[BlackFideId "2049945"]
[WhiteElo "1523"]
[BlackElo "2284"]
[Result "1-0"]
[Round "09"]
[TimeControl "180+1"]
[Date "2022.11.30"]
[WhiteClock "0:01:26"]
[BlackClock "0:00:01"]

1. d4 {[%clk 0:03:00]}  Nf6 {[%clk 0:02:12]} 2. c4 {[%clk 0:03:00]}  e6 {[%clk 0:02:12]} 3. Nc3 {[%clk 0:02:58]}  Bb4 {[%clk 0:02:12]} 4. Qc2 {[%clk 0:02:58]}  O-O {[%clk 0:02:12]} 5. Bg5 {[%clk 0:02:53]}  h6 {[%clk 0:02:09]} 6. Bh4 {[%clk 0:02:52]}  d5 {[%clk 0:01:53]} 7. cxd5 {[%clk 0:02:50]}  exd5 {[%clk 0:01:53]} 8. e3 {[%clk 0:02:50]}  c6 {[%clk 0:01:52]} 9. Bd3 {[%clk 0:02:50]}  Nbd7 {[%clk 0:01:49]} 10. Ne2 {[%clk 0:02:50]}  Re8 {[%clk 0:01:46]} 11. O-O {[%clk 0:02:48]}  Be7 {[%clk 0:01:47]} 12. f3 {[%clk 0:02:47]}  Nf8 {[%clk 0:01:45]} 13. Bf2 {[%clk 0:02:47]}  b6 {[%clk 0:01:32]} 14. e4 {[%clk 0:02:46]}  dxe4 {[%clk 0:01:32]} 15. Nxe4 {[%clk 0:02:36]}  Bb7 {[%clk 0:01:29]} 16. N2g3 {[%clk 0:02:33]}  Ne6 {[%clk 0:01:26]} 17. Nf5 {[%clk 0:02:30]}  Nxe4 {[%clk 0:01:24]} 18. fxe4 {[%clk 0:02:29]}  Rc8 {[%clk 0:01:10]} 19. Qe2 {[%clk 0:02:26]}  Nf4 {[%clk 0:01:06]} 20. Qc2 {[%clk 0:02:16]}  Nxd3 {[%clk 0:01:05]} 21. Qxd3 {[%clk 0:02:17]}  c5 {[%clk 0:00:50]} 22. d5 {[%clk 0:02:16]}  Bf6 {[%clk 0:00:50]} 23. Rae1 {[%clk 0:02:10]}  Qd7 {[%clk 0:00:38]} 24. Qg3 {[%clk 0:02:06]}  Kh8 {[%clk 0:00:34]} 25. Qg4 {[%clk 0:01:57]}  Rcd8 {[%clk 0:00:30]} 26. Bh4 {[%clk 0:01:55]}  Rg8 {[%clk 0:00:13]} 27. Bxf6 {[%clk 0:01:53]}  gxf6 {[%clk 0:00:14]} 28. Qh4 {[%clk 0:01:46]}  Rg6 {[%clk 0:00:11]} 29. Rf3 {[%clk 0:01:44]}  Rdg8 {[%clk 0:00:10]} 30. Rg3 {[%clk 0:01:43]}  Bxd5 {[%clk 0:00:07]} 31. Nxh6 {[%clk 0:01:39]}  R8g7 {[%clk 0:00:01]} 32. Rxg6 {[%clk 0:01:32]}  fxg6 {[%clk 0:00:01]} 33. Ng4+ {[%clk 0:01:27]}  Kg8 {[%clk 0:00:01]} 34. Nxf6+ {[%clk 0:01:26]} 1-0


[Site "https://www.chess.com"]

[Event "Titled Tuesday Blitz November 29 Late 2022"]
[White "Cappelletto, Joshuaede"]
[Black "D`Arruda, Ricardo D."]
[WhiteFideId "2824383"]
[BlackFideId "100692"]
[WhiteElo "2237"]
[BlackElo "2463"]
[Result "1-0"]
[Round "09"]
[TimeControl "180+1"]
[Date "2022.11.30"]
[WhiteClock "0:01:07"]
[BlackClock "0:00:45"]

1. c4 {[%clk 0:02:55]}  Nf6 {[%clk 0:02:22]} 2. Nc3 {[%clk 0:02:53]}  e5 {[%clk 0:02:22]} 3. g3 {[%clk 0:02:49]}  Nc6 {[%clk 0:02:22]} 4. Bg2 {[%clk 0:02:49]}  Be7 {[%clk 0:02:23]} 5. Nf3 {[%clk 0:02:45]}  d6 {[%clk 0:02:23]} 6. O-O {[%clk 0:02:45]}  O-O {[%clk 0:02:23]} 7. d4 {[%clk 0:02:45]}  exd4 {[%clk 0:02:23]} 8. Nxd4 {[%clk 0:02:45]}  Bd7 {[%clk 0:02:23]} 9. Nc2 {[%clk 0:02:45]}  Re8 {[%clk 0:02:20]} 10. b3 {[%clk 0:02:45]}  a6 {[%clk 0:02:20]} 11. Bb2 {[%clk 0:02:46]}  Rb8 {[%clk 0:02:20]} 12. Qd2 {[%clk 0:02:46]}  b5 {[%clk 0:02:20]} 13. cxb5 {[%clk 0:02:46]}  axb5 {[%clk 0:02:21]} 14. Ne3 {[%clk 0:02:42]}  Ne5 {[%clk 0:02:18]} 15. Ncd5 {[%clk 0:02:39]}  Nxd5 {[%clk 0:02:17]} 16. Nxd5 {[%clk 0:02:39]}  Bf8 {[%clk 0:02:14]} 17. f4 {[%clk 0:02:33]}  Ng4 {[%clk 0:01:57]} 18. h3 {[%clk 0:02:33]}  c6 {[%clk 0:01:57]} 19. hxg4 {[%clk 0:02:33]}  cxd5 {[%clk 0:01:57]} 20. g5 {[%clk 0:02:21]}  Bg4 {[%clk 0:01:54]} 21. Bf3 {[%clk 0:02:19]}  Bxf3 {[%clk 0:01:48]} 22. Rxf3 {[%clk 0:02:20]}  Qb6+ {[%clk 0:01:45]} 23. Bd4 {[%clk 0:02:18]}  Qb7 {[%clk 0:01:44]} 24. e3 {[%clk 0:02:17]}  Rec8 {[%clk 0:01:41]} 25. Rf2 {[%clk 0:02:17]}  g6 {[%clk 0:01:37]} 26. Rh2 {[%clk 0:02:16]}  Bg7 {[%clk 0:01:36]} 27. Rd1 {[%clk 0:01:45]}  Bxd4 {[%clk 0:01:34]} 28. Qxd4 {[%clk 0:01:46]}  Qb6 {[%clk 0:01:29]} 29. Qxb6 {[%clk 0:01:44]}  Rxb6 {[%clk 0:01:30]} 30. Rxd5 {[%clk 0:01:44]}  Rc1+ {[%clk 0:01:29]} 31. Kg2 {[%clk 0:01:45]}  Rc2+ {[%clk 0:01:26]} 32. Kh3 {[%clk 0:01:45]}  Rxh2+ {[%clk 0:01:22]} 33. Kxh2 {[%clk 0:01:45]}  b4 {[%clk 0:01:19]} 34. Kg2 {[%clk 0:01:45]}  Kf8 {[%clk 0:01:20]} 35. Kf3 {[%clk 0:01:43]}  Ke7 {[%clk 0:01:20]} 36. Ra5 {[%clk 0:01:42]}  Ke6 {[%clk 0:01:16]} 37. Ke4 {[%clk 0:01:42]}  Rc6 {[%clk 0:01:12]} 38. Rb5 {[%clk 0:01:41]}  Ra6 {[%clk 0:01:12]} 39. Rxb4 {[%clk 0:01:41]}  Rxa2 {[%clk 0:01:13]} 40. g4 {[%clk 0:01:37]}  d5+ {[%clk 0:01:10]} 41. Kf3 {[%clk 0:01:38]}  Rc2 {[%clk 0:01:07]} 42. Rb6+ {[%clk 0:01:35]}  Ke7 {[%clk 0:01:06]} 43. b4 {[%clk 0:01:31]}  Rc3 {[%clk 0:01:05]} 44. Ke2 {[%clk 0:01:30]}  Rb3 {[%clk 0:01:04]} 45. f5 {[%clk 0:01:25]}  Kd7 {[%clk 0:01:00]} 46. Rb7+ {[%clk 0:01:24]}  Ke8 {[%clk 0:01:00]} 47. Rb5 {[%clk 0:01:15]}  Rb2+ {[%clk 0:00:58]} 48. Kf3 {[%clk 0:01:15]}  Rd2 {[%clk 0:00:57]} 49. Kf4 {[%clk 0:01:13]}  Rd3 {[%clk 0:00:56]} 50. Rb7 {[%clk 0:01:11]}  d4 {[%clk 0:00:51]} 51. e4 {[%clk 0:01:10]}  Rd1 {[%clk 0:00:45]} 52. Ke5 {[%clk 0:01:07]}  d3 {[%clk 0:00:45]} 53. Kd6 {[%clk 0:01:07]} 1-0


[Site "https://www.chess.com"]

[Event "Titled Tuesday Blitz November 29 Late 2022"]
[White "Cardoso Cardoso, Jose Gabriel"]
[Black "Aghasiyev, Kamal"]
[WhiteFideId "4430492"]
[BlackFideId "13402854"]
[WhiteElo "2484"]
[BlackElo "2341"]
[Result "0-1"]
[Round "09"]
[TimeControl "180+1"]
[Date "2022.11.30"]
[WhiteClock "0:00:03"]
[BlackClock "0:00:11"]

1. c4 {[%clk 0:03:00]}  e5 {[%clk 0:02:58]} 2. Nc3 {[%clk 0:02:56]}  Nf6 {[%clk 0:02:58]} 3. Nf3 {[%clk 0:02:52]}  Nc6 {[%clk 0:02:57]} 4. d3 {[%clk 0:02:52]}  d5 {[%clk 0:02:56]} 5. cxd5 {[%clk 0:02:52]}  Nxd5 {[%clk 0:02:57]} 6. Bd2 {[%clk 0:02:52]}  Be7 {[%clk 0:02:57]} 7. e3 {[%clk 0:02:48]}  O-O {[%clk 0:02:56]} 8. a3 {[%clk 0:02:47]}  Kh8 {[%clk 0:02:55]} 9. Be2 {[%clk 0:02:45]}  f5 {[%clk 0:02:53]} 10. O-O {[%clk 0:02:43]}  f4 {[%clk 0:02:48]} 11. Nxd5 {[%clk 0:02:41]}  Qxd5 {[%clk 0:02:47]} 12. b4 {[%clk 0:02:36]}  a6 {[%clk 0:02:32]} 13. Rc1 {[%clk 0:02:24]}  Bg4 {[%clk 0:02:31]} 14. e4 {[%clk 0:02:14]}  Qd7 {[%clk 0:02:30]} 15. Bc3 {[%clk 0:01:15]}  Bf6 {[%clk 0:02:16]} 16. h3 {[%clk 0:01:11]}  Be6 {[%clk 0:01:51]} 17. Bb2 {[%clk 0:00:59]}  Rae8 {[%clk 0:01:45]} 18. Nh2 {[%clk 0:00:46]}  Re7 {[%clk 0:01:39]} 19. Bg4 {[%clk 0:00:45]}  Rd8 {[%clk 0:01:33]} 20. Bxe6 {[%clk 0:00:44]}  Rxe6 {[%clk 0:01:33]} 21. Rc3 {[%clk 0:00:35]}  Rd6 {[%clk 0:01:30]} 22. Ng4 {[%clk 0:00:23]}  Rxd3 {[%clk 0:01:27]} 23. Rxd3 {[%clk 0:00:23]}  Qxd3 {[%clk 0:01:27]} 24. Qc1 {[%clk 0:00:18]}  Qxe4 {[%clk 0:01:24]} 25. Rd1 {[%clk 0:00:17]}  Rd3 {[%clk 0:01:18]} 26. Qc2 {[%clk 0:00:13]}  Rxd1+ {[%clk 0:01:11]} 27. Qxd1 {[%clk 0:00:13]}  Qf5 {[%clk 0:01:06]} 28. f3 {[%clk 0:00:12]}  h5 {[%clk 0:00:59]} 29. Nf2 {[%clk 0:00:12]}  Bh4 {[%clk 0:00:44]} 30. Ne4 {[%clk 0:00:12]}  Qe6 {[%clk 0:00:44]} 31. Qd3 {[%clk 0:00:08]}  Qa2 {[%clk 0:00:38]} 32. Bc3 {[%clk 0:00:03]}  Qxa3 {[%clk 0:00:36]} 33. Kf1 {[%clk 0:00:03]}  Qc1+ {[%clk 0:00:35]} 34. Ke2 {[%clk 0:00:03]}  Qg1 {[%clk 0:00:32]} 35. Bd2 {[%clk 0:00:01]}  Qxg2+ {[%clk 0:00:32]} 36. Kd1 {[%clk 0:00:02]}  Qg1+ {[%clk 0:00:30]} 37. Kc2 {[%clk 0:00:02]}  Nd4+ {[%clk 0:00:31]} 38. Kb2 {[%clk 0:00:02]}  Qd1 {[%clk 0:00:29]} 39. Nc5 {[%clk 0:00:02]}  Be1 {[%clk 0:00:26]} 40. Bxe1 {[%clk 0:00:01]}  Qxe1 {[%clk 0:00:26]} 41. Qg6 {[%clk 0:00:02]}  Qxb4+ {[%clk 0:00:25]} 42. Ka1 {[%clk 0:00:02]}  Qa3+ {[%clk 0:00:15]} 43. Kb1 {[%clk 0:00:02]}  Qxc5 {[%clk 0:00:15]} 44. Qe8+ {[%clk 0:00:02]}  Kh7 {[%clk 0:00:14]} 45. Qxh5+ {[%clk 0:00:03]}  Kg8 {[%clk 0:00:14]} 46. Qe8+ {[%clk 0:00:03]}  Qf8 {[%clk 0:00:14]} 47. Qxe5 {[%clk 0:00:04]}  Qb4+ {[%clk 0:00:12]} 48. Ka1 {[%clk 0:00:03]}  Qc3+ {[%clk 0:00:11]} 49. Kb1 {[%clk 0:00:02]}  Qc2+ {[%clk 0:00:11]} 50. Ka1 {[%clk 0:00:03]}  Nb3# {[%clk 0:00:11]} 0-1


[Site "https://www.chess.com"]

[Event "Titled Tuesday Blitz November 29 Late 2022"]
[White "Chlpik, Martin"]
[Black "Ferreira, Vitor Hugo Vieira"]
[WhiteFideId "14923351"]
[BlackFideId "2119765"]
[WhiteElo "2109"]
[BlackElo "2168"]
[Result "1-0"]
[Round "09"]
[TimeControl "180+1"]
[Date "2022.11.30"]
[WhiteClock "0:00:32"]
[BlackClock "0:00:07"]

1. d4 {[%clk 0:03:00]}  d5 {[%clk 0:02:59]} 2. Nc3 {[%clk 0:03:01]}  c6 {[%clk 0:03:00]} 3. Bf4 {[%clk 0:03:01]}  Nf6 {[%clk 0:03:00]} 4. e3 {[%clk 0:02:59]}  Bf5 {[%clk 0:03:00]} 5. f3 {[%clk 0:02:59]}  h6 {[%clk 0:02:58]} 6. g4 {[%clk 0:02:57]}  Bh7 {[%clk 0:02:58]} 7. h4 {[%clk 0:02:56]}  e6 {[%clk 0:02:54]} 8. Bd3 {[%clk 0:02:54]}  Bxd3 {[%clk 0:02:53]} 9. Qxd3 {[%clk 0:02:55]}  Bd6 {[%clk 0:02:51]} 10. Nh3 {[%clk 0:02:51]}  Qe7 {[%clk 0:02:50]} 11. O-O-O {[%clk 0:02:50]}  Nbd7 {[%clk 0:02:49]} 12. Rhg1 {[%clk 0:02:42]}  O-O-O {[%clk 0:02:45]} 13. Bxd6 {[%clk 0:02:33]}  Qxd6 {[%clk 0:02:45]} 14. e4 {[%clk 0:02:34]}  dxe4 {[%clk 0:02:42]} 15. fxe4 {[%clk 0:02:34]}  e5 {[%clk 0:02:42]} 16. g5 {[%clk 0:02:26]}  Nh5 {[%clk 0:02:37]} 17. Qf3 {[%clk 0:02:17]}  Qg6 {[%clk 0:02:33]} 18. gxh6 {[%clk 0:02:05]}  Qxh6+ {[%clk 0:02:33]} 19. Kb1 {[%clk 0:02:05]}  exd4 {[%clk 0:02:33]} 20. Rxd4 {[%clk 0:02:01]}  Ne5 {[%clk 0:02:04]} 21. Rxd8+ {[%clk 0:01:53]}  Kxd8 {[%clk 0:02:03]} 22. Qf2 {[%clk 0:01:31]}  a6 {[%clk 0:01:38]} 23. Qd4+ {[%clk 0:01:22]}  Nd7 {[%clk 0:01:36]} 24. Ng5 {[%clk 0:01:09]}  Rf8 {[%clk 0:01:14]} 25. Rd1 {[%clk 0:01:09]}  Nf6 {[%clk 0:01:10]} 26. Qd6 {[%clk 0:00:46]}  Kc8 {[%clk 0:00:52]} 27. e5 {[%clk 0:00:34]}  Nd5 {[%clk 0:00:52]} 28. e6 {[%clk 0:00:34]}  fxe6 {[%clk 0:00:46]} 29. Nxe6 {[%clk 0:00:33]}  Rf6 {[%clk 0:00:16]} 30. Nxd5 {[%clk 0:00:32]}  Rxe6 {[%clk 0:00:07]} 31. Qc7# {[%clk 0:00:32]} 1-0


[Site "https://www.chess.com"]

[Event "Titled Tuesday Blitz November 29 Late 2022"]
[White "Dias, Joao Batista"]
[Black "De Souza, Cristiano Gomes"]
[WhiteFideId "2108240"]
[BlackFideId "2151758"]
[WhiteElo "1898"]
[BlackElo "2068"]
[Result "1-0"]
[Round "09"]
[TimeControl "180+1"]
[Date "2022.11.30"]
[WhiteClock "0:00:12"]
[BlackClock "0:00:01"]

1. e4 {[%clk 0:03:00]}  c5 {[%clk 0:02:57]} 2. Nf3 {[%clk 0:03:00]}  d6 {[%clk 0:02:56]} 3. d4 {[%clk 0:03:00]}  cxd4 {[%clk 0:02:56]} 4. Nxd4 {[%clk 0:03:00]}  Nf6 {[%clk 0:02:57]} 5. Nc3 {[%clk 0:02:59]}  a6 {[%clk 0:02:56]} 6. Be3 {[%clk 0:02:58]}  e5 {[%clk 0:02:56]} 7. Nde2 {[%clk 0:02:57]}  Be6 {[%clk 0:02:56]} 8. Ng3 {[%clk 0:02:57]}  d5 {[%clk 0:02:54]} 9. exd5 {[%clk 0:02:56]}  Nxd5 {[%clk 0:02:54]} 10. Nxd5 {[%clk 0:02:56]}  Bxd5 {[%clk 0:02:54]} 11. f3 {[%clk 0:02:54]}  Nc6 {[%clk 0:02:52]} 12. Bd3 {[%clk 0:02:53]}  g6 {[%clk 0:02:48]} 13. O-O {[%clk 0:02:53]}  Bg7 {[%clk 0:02:47]} 14. Qd2 {[%clk 0:02:49]}  O-O {[%clk 0:02:45]} 15. Rad1 {[%clk 0:02:48]}  Be6 {[%clk 0:02:42]} 16. Bh6 {[%clk 0:02:46]}  Qb6+ {[%clk 0:02:38]} 17. Kh1 {[%clk 0:02:43]}  Qxb2 {[%clk 0:02:37]} 18. Bxg7 {[%clk 0:02:41]}  Kxg7 {[%clk 0:02:35]} 19. Qg5 {[%clk 0:02:41]}  f6 {[%clk 0:02:16]} 20. Qe3 {[%clk 0:02:26]}  Qd4 {[%clk 0:02:00]} 21. Qc1 {[%clk 0:02:19]}  Qh4 {[%clk 0:01:49]} 22. Qb2 {[%clk 0:02:11]}  Rf7 {[%clk 0:01:46]} 23. Ne4 {[%clk 0:02:07]}  b5 {[%clk 0:01:35]} 24. Qc3 {[%clk 0:02:02]}  Nd4 {[%clk 0:01:31]} 25. a4 {[%clk 0:01:51]}  Rc8 {[%clk 0:01:26]} 26. Qa5 {[%clk 0:01:50]}  Rc6 {[%clk 0:01:18]} 27. axb5 {[%clk 0:01:50]}  axb5 {[%clk 0:01:17]} 28. c3 {[%clk 0:01:48]}  Nf5 {[%clk 0:01:15]} 29. Kg1 {[%clk 0:01:43]}  Ne3 {[%clk 0:01:12]} 30. Bxb5 {[%clk 0:01:38]}  Rc8 {[%clk 0:01:01]} 31. Qa6 {[%clk 0:01:22]}  Nxf1 {[%clk 0:00:52]} 32. Bxf1 {[%clk 0:01:12]}  Re7 {[%clk 0:00:37]} 33. Qd6 {[%clk 0:01:01]}  Rcc7 {[%clk 0:00:26]} 34. Nc5 {[%clk 0:00:55]}  Bf7 {[%clk 0:00:15]} 35. Ne4 {[%clk 0:00:48]}  f5 {[%clk 0:00:13]} 36. g3 {[%clk 0:00:42]}  Qh6 {[%clk 0:00:12]} 37. Qf6+ {[%clk 0:00:31]}  Kg8 {[%clk 0:00:10]} 38. Rd8+ {[%clk 0:00:27]}  Re8 {[%clk 0:00:11]} 39. Nd6 {[%clk 0:00:22]}  Qe3+ {[%clk 0:00:08]} 40. Kg2 {[%clk 0:00:20]}  Qd2+ {[%clk 0:00:07]} 41. Kh3 {[%clk 0:00:20]}  Rxd8 {[%clk 0:00:07]} 42. Qxd8+ {[%clk 0:00:19]}  Kg7 {[%clk 0:00:06]} 43. Qxc7 {[%clk 0:00:19]}  Qh6+ {[%clk 0:00:06]} 44. Kg2 {[%clk 0:00:18]}  Qd2+ {[%clk 0:00:06]} 45. Kh1 {[%clk 0:00:17]}  Qf2 {[%clk 0:00:04]} 46. Qxf7+ {[%clk 0:00:17]}  Kh6 {[%clk 0:00:05]} 47. Qf8+ {[%clk 0:00:17]}  Kg5 {[%clk 0:00:04]} 48. Qe7+ {[%clk 0:00:15]}  Kh6 {[%clk 0:00:03]} 49. Qf8+ {[%clk 0:00:15]}  Kg5 {[%clk 0:00:03]} 50. h4+ {[%clk 0:00:15]}  Kh5 {[%clk 0:00:02]} 51. Bg2 {[%clk 0:00:13]}  Qxg3 {[%clk 0:00:01]} 52. Qf6 {[%clk 0:00:12]} 1-0


[Site "https://www.chess.com"]

[Event "Titled Tuesday Blitz November 29 Late 2022"]
[White "Domingo Nunez, Ruben"]
[Black "Vasques, Antonio Pedro Freixial"]
[WhiteFideId "22245570"]
[BlackFideId "1908332"]
[WhiteElo "2406"]
[BlackElo "2243"]
[Result "1-0"]
[Round "09"]
[TimeControl "180+1"]
[Date "2022.11.30"]
[WhiteClock "0:02:36"]
[BlackClock "0:01:37"]

1. e4 {[%clk 0:02:56]}  c5 {[%clk 0:02:59]} 2. d4 {[%clk 0:02:53]}  cxd4 {[%clk 0:02:59]} 3. c3 {[%clk 0:02:54]}  d3 {[%clk 0:03:00]} 4. Bxd3 {[%clk 0:02:53]}  Nc6 {[%clk 0:03:00]} 5. c4 {[%clk 0:02:54]}  g6 {[%clk 0:03:00]} 6. h3 {[%clk 0:02:55]}  Bg7 {[%clk 0:03:01]} 7. Nf3 {[%clk 0:02:56]}  d6 {[%clk 0:03:01]} 8. O-O {[%clk 0:02:57]}  Nf6 {[%clk 0:03:02]} 9. Nc3 {[%clk 0:02:58]}  O-O {[%clk 0:03:02]} 10. Be3 {[%clk 0:02:59]}  Be6 {[%clk 0:03:00]} 11. Rc1 {[%clk 0:02:59]}  Qa5 {[%clk 0:02:59]} 12. b3 {[%clk 0:02:59]}  Rac8 {[%clk 0:02:57]} 13. Qe2 {[%clk 0:02:58]}  Rfe8 {[%clk 0:02:57]} 14. Rfd1 {[%clk 0:02:58]}  a6 {[%clk 0:02:58]} 15. Bb1 {[%clk 0:02:51]}  Nd7 {[%clk 0:02:55]} 16. Bd2 {[%clk 0:02:46]}  Qh5 {[%clk 0:02:29]} 17. Qe3 {[%clk 0:02:46]}  Nde5 {[%clk 0:02:03]} 18. Nh2 {[%clk 0:02:39]}  f5 {[%clk 0:01:47]} 19. Nd5 {[%clk 0:02:35]}  fxe4 {[%clk 0:01:41]} 20. Nf4 {[%clk 0:02:36]}  Qf5 {[%clk 0:01:40]} 21. Bxe4 {[%clk 0:02:36]}  Qf6 {[%clk 0:01:37]} 22. Nxe6 {[%clk 0:02:36]} 1-0


[Site "https://www.chess.com"]

[Event "Titled Tuesday Blitz November 29 Late 2022"]
[White "Dylag, Emilia"]
[Black "Girsh, Daniel"]
[WhiteFideId "21805172"]
[BlackFideId "30949190"]
[WhiteElo "1878"]
[BlackElo "2075"]
[Result "1-0"]
[Round "09"]
[TimeControl "180+1"]
[Date "2022.11.30"]
[WhiteClock "0:00:01"]
[BlackClock "0:00:16"]

1. d4 {[%clk 0:02:53]}  Nf6 {[%clk 0:02:59]} 2. c4 {[%clk 0:02:52]}  c5 {[%clk 0:02:59]} 3. d5 {[%clk 0:02:51]}  b5 {[%clk 0:03:00]} 4. Qc2 {[%clk 0:02:48]}  g6 {[%clk 0:02:58]} 5. e4 {[%clk 0:02:42]}  d6 {[%clk 0:02:57]} 6. Nf3 {[%clk 0:02:31]}  Bg7 {[%clk 0:02:54]} 7. cxb5 {[%clk 0:02:29]}  O-O {[%clk 0:02:53]} 8. Nc3 {[%clk 0:02:24]}  a6 {[%clk 0:02:46]} 9. Bc4 {[%clk 0:02:22]}  axb5 {[%clk 0:02:46]} 10. Bxb5 {[%clk 0:02:22]}  Ba6 {[%clk 0:02:46]} 11. Bxa6 {[%clk 0:02:21]}  Nxa6 {[%clk 0:02:47]} 12. O-O {[%clk 0:02:21]}  Qa5 {[%clk 0:02:46]} 13. Re1 {[%clk 0:02:15]}  Ng4 {[%clk 0:02:44]} 14. Bf4 {[%clk 0:02:13]}  Nb4 {[%clk 0:02:39]} 15. Qd2 {[%clk 0:02:10]}  Rfb8 {[%clk 0:02:36]} 16. h3 {[%clk 0:02:09]}  Nf6 {[%clk 0:02:34]} 17. a3 {[%clk 0:02:07]}  Na6 {[%clk 0:02:33]} 18. e5 {[%clk 0:02:05]}  Ne8 {[%clk 0:02:32]} 19. Ng5 {[%clk 0:01:49]}  Qb6 {[%clk 0:02:24]} 20. Rab1 {[%clk 0:01:45]}  c4 {[%clk 0:02:14]} 21. exd6 {[%clk 0:01:43]}  exd6 {[%clk 0:02:13]} 22. Re7 {[%clk 0:01:42]}  Ra7 {[%clk 0:02:09]} 23. Be3 {[%clk 0:01:40]}  Nc5 {[%clk 0:02:08]} 24. Rxa7 {[%clk 0:01:32]}  Qxa7 {[%clk 0:02:02]} 25. Bd4 {[%clk 0:01:23]}  Nf6 {[%clk 0:01:51]} 26. Qf4 {[%clk 0:01:09]}  Nh5 {[%clk 0:01:37]} 27. Bxc5 {[%clk 0:00:52]}  dxc5 {[%clk 0:01:29]} 28. Qf3 {[%clk 0:00:51]}  Bd4 {[%clk 0:01:20]} 29. g4 {[%clk 0:00:45]}  Nf6 {[%clk 0:01:17]} 30. d6 {[%clk 0:00:22]}  Qd7 {[%clk 0:01:06]} 31. Nce4 {[%clk 0:00:22]}  Nxe4 {[%clk 0:01:02]} 32. Nxe4 {[%clk 0:00:22]}  Rxb2 {[%clk 0:01:02]} 33. Rxb2 {[%clk 0:00:20]}  Bxb2 {[%clk 0:01:02]} 34. a4 {[%clk 0:00:17]}  Kg7 {[%clk 0:00:59]} 35. a5 {[%clk 0:00:15]}  Qb5 {[%clk 0:00:50]} 36. Ng5 {[%clk 0:00:11]}  Bf6 {[%clk 0:00:50]} 37. Nxh7 {[%clk 0:00:10]}  Be5 {[%clk 0:00:43]} 38. Ng5 {[%clk 0:00:09]}  f6 {[%clk 0:00:39]} 39. Ne6+ {[%clk 0:00:07]}  Kf7 {[%clk 0:00:39]} 40. Nd8+ {[%clk 0:00:06]}  Ke8 {[%clk 0:00:31]} 41. Qa8 {[%clk 0:00:06]}  Bxd6 {[%clk 0:00:24]} 42. Nb7+ {[%clk 0:00:03]}  Kd7 {[%clk 0:00:17]} 43. Qd8+ {[%clk 0:00:03]}  Kc6 {[%clk 0:00:16]} 44. Nxd6 {[%clk 0:00:04]}  Qb1+ {[%clk 0:00:16]} 45. Kg2 {[%clk 0:00:04]}  c3 {[%clk 0:00:17]} 46. Nc4 {[%clk 0:00:04]}  Qe4+ {[%clk 0:00:16]} 47. f3 {[%clk 0:00:02]}  Qxc4 {[%clk 0:00:17]} 48. Qb6+ {[%clk 0:00:02]}  Kd5 {[%clk 0:00:16]} 49. Qb7+ {[%clk 0:00:01]}  Kd4 {[%clk 0:00:16]} 50. Qe4# {[%clk 0:00:01]} 1-0


[Site "https://www.chess.com"]